[Event "Is Bankasi Online Satranc Turn.19-20 YAS"]
[Site "T#646377Mustafa Kemal"]
[Date "2020.05.27"]
[Round "1"]
[White "Koraypehlivano52"]
[Black "Kadirakin18"]
[Result "0-1"]
[WhiteElo "1620"]
[BlackElo "1620"]
[Annotator "NA RC"]
[PlyCount "54"]
[EventDate "2020.05.27"]
[EventType "swiss (blitz)"]
[TimeControl "180+2"]

1. e4 {[%emt 0:00:05]} c5 {[%emt 0:00:02]} 2. Qh5 {[%emt 0:00:02]} e6 {[%emt 0:00:03]} 3. Qf3 {[%emt 0:00:05]} Nc6 {[%emt 0:00:02]} 4. c3 {[%emt 0:00:02]} Nf6 {[%emt 0:00:02]} 5. d3 {[%emt 0:00:02]} d5 {[%emt 0:00:02]} 6. exd5 {[%emt 0:00:04]} exd5 {[%emt 0:00:00]} 7. h3 {[%emt 0:00:02]} Be7 {[%emt 0:00:02]} 8. Qg3 {[%emt 0:00:05]} O-O {[%emt 0:00:11]} 9. Be2 {[%emt 0:00:05]} Bd6 {[%emt 0:00:06]} 10. Qf3 {[%emt 0:00:07]} Ne5 {[%emt 0:00:01]} 11. Qe3 {[%emt 0:00:13]} Re8 {[%emt 0:00:03]} 12. Kf1 {[%emt 0:00:15]} Bf5 {[%emt 0:00:04]} 13. Nf3 {[%emt 0:00:10]} Nxd3 {[%emt 0:00:11]} 14. Bxd3 {[%emt 0:00:03]} Rxe3 {[%emt 0:00:03]} 15. fxe3 {[%emt 0:00:03]} Bxd3+ {[%emt 0:00:01]} 16. Ke1 {[%emt 0:00:04]} Bg3+ {[%emt 0:00:02]} 17. Kd1 {[%emt 0:00:05]} Ne4 {[%emt 0:00:03]} 18. Rg1 {[%emt 0:00:08]} Qb6 {[%emt 0:00:14]} 19. Nbd2 {[%emt 0:00:05]} Nf2+ {[%emt 0:00:01]} 20. Ke1 {[%emt 0:00:07]} Re8 {[%emt 0:00:01]} 21. Nf1 {[%emt 0:00:09]} Bxf1 {[%emt 0:00:06]} 22. Rxf1 {[%emt 0:00:01]} d4 {[%emt 0:00:09]} 23. cxd4 {[%emt 0:00:11]} cxd4 {[%emt 0:00:00]} 24. b3 {[%emt 0:00:11]} dxe3 {[%emt 0:00:03]} 25. Ke2 {[%emt 0:00:15]} Qb5+ {[%emt 0:00:02]} 26. Ke1 {[%emt 0:00:04]} Qd3 {[%emt 0:00:12]} 27. Bd2 {[%emt 0:00:10]} exd2# {[%emt 0:00:04] (Lag: Av=0.89s, max=1.4s)} 0-1

[Event "Is Bankasi Online Satranc Turn.19-20 YAS"]
[Site "T#646377Mustafa Kemal"]
[Date "2020.05.27"]
[Round "1"]
[White "Ahmettahainal50"]
[Black "Hamitalphanmet52"]
[Result "1-0"]
[WhiteElo "1433"]
[BlackElo "1620"]
[Annotator "NA RC"]
[PlyCount "91"]
[EventDate "2020.05.27"]
[EventType "swiss (blitz)"]
[TimeControl "180+2"]

1. d4 {[%emt 0:00:02]} d5 {[%emt 0:00:02]} 2. Bf4 {[%emt 0:00:05]} Nc6 {[%emt 0:00:05]} 3. e3 {[%emt 0:00:01]} Nf6 {[%emt 0:00:02]} 4. Nf3 {[%emt 0:00:02]} Bg4 {[%emt 0:00:02]} 5. Be2 {[%emt 0:00:02]} e6 {[%emt 0:00:11]} 6. h3 {[%emt 0:00:04]} Bxf3 {[%emt 0:00:02]} 7. Bxf3 {[%emt 0:00:03]} Bd6 {[%emt 0:00:01]} 8. Bg5 {[%emt 0:00:03]} h6 {[%emt 0:00:02]} 9. Bxf6 {[%emt 0:00:02]} Qxf6 {[%emt 0:00:01]} 10. O-O {[%emt 0:00:02]} O-O-O {[%emt 0:00:02]} 11. Nd2 {[%emt 0:00:02]} g5 {[%emt 0:00:04]} 12. c4 {[%emt 0:00:03]} Rdg8 {[%emt 0:00:11]} 13. cxd5 {[%emt 0:00:05]} exd5 {[%emt 0:00:06]} 14. Bxd5 {[%emt 0:00:03]} Ne7 {[%emt 0:00:10]} 15. Qg4+ {[%emt 0:00:06]} Kb8 {[%emt 0:00:09]} 16. Ne4 {[%emt 0:00:06]} Qf5 {[%emt 0:00:16]} 17. Qxf5 {[%emt 0:00:07]} Nxf5 {[%emt 0:00:02]} 18. Bxf7 {[%emt 0:00:03]} Rf8 {[%emt 0:00:02]} 19. Be6 {[%emt 0:00:06]} Ng7 {[%emt 0:00:08]} 20. Nxd6 {[%emt 0:00:04]} Nxe6 {[%emt 0:00:08]} 21. Ne4 {[%emt 0:00:04]} Rhg8 {[%emt 0:00:05]} 22. Rac1 {[%emt 0:00:06]} g4 {[%emt 0:00:05]} 23. h4 {[%emt 0:00:03]} h5 {[%emt 0:00:05]} 24. Nc5 {[%emt 0:00:03]} Nxc5 {[%emt 0:00:10]} 25. Rxc5 {[%emt 0:00:04]} Rh8 {[%emt 0:00:03]} 26. Rfc1 {[%emt 0:00:03]} Rf7 {[%emt 0:00:03]} 27. g3 {[%emt 0:00:03]} Rhf8 {[%emt 0:00:05]} 28. R1c2 {[%emt 0:00:03]} Rh8 {[%emt 0:00:06]} 29. e4 {[%emt 0:00:03]} c6 {[%emt 0:00:02]} 30. e5 {[%emt 0:00:02]} Rd8 {[%emt 0:00:04]} 31. R5c4 {[%emt 0:00:03]} Rfd7 {[%emt 0:00:04]} 32. e6 {[%emt 0:00:06]} Re7 {[%emt 0:00:05]} 33. Re2 {[%emt 0:00:06]} Rd6 {[%emt 0:00:03]} 34. Rc5 {[%emt 0:00:04]} Rxd4 {[%emt 0:00:09]} 35. Rxh5 {[%emt 0:00:03]} Kc7 {[%emt 0:00:06]} 36. Rf5 {[%emt 0:00:04]} Kd6 {[%emt 0:00:06]} 37. Rfe5 {[%emt 0:00:04]} Rd1+ {[%emt 0:00:05]} 38. Kg2 {[%emt 0:00:04]} Rd4 {[%emt 0:00:16]} 39. h5 {[%emt 0:00:03]} Rd5 {[%emt 0:00:12]} 40. Rxd5+ {[%emt 0:00:04]} Kxd5 {[%emt 0:00:04]} 41. h6 {[%emt 0:00:04]} Kd6 {[%emt 0:00:03]} 42. f3 {[%emt 0:00:07]} gxf3+ {[%emt 0:00:03]} 43. Kxf3 {[%emt 0:00:03]} Rh7 {[%emt 0:00:01]} 44. e7 {[%emt 0:00:06]} Rxe7 {[%emt 0:00:02]} 45. Rxe7 {[%emt 0:00:04]} Kxe7 {[%emt 0:00:00]} 46. h7 {[%emt 0:00:02] Hamitalphanmet52 resigns (Lag: Av=0.76s, max=1.3s)} 1-0

[Event "Is Bankasi Online Satranc Turn.19-20 YAS"]
[Site "T#646377Mustafa Kemal"]
[Date "2020.05.27"]
[Round "4"]
[White "Halityavuzibik00"]
[Black "Kadirakin18"]
[Result "0-1"]
[WhiteElo "1677"]
[BlackElo "1686"]
[Annotator "NA RC"]
[PlyCount "60"]
[EventDate "2020.05.27"]
[EventType "swiss (blitz)"]
[TimeControl "180+2"]

1. e4 {[%emt 0:00:06]} c5 {[%emt 0:00:01]} 2. Nf3 {[%emt 0:00:01]} e6 {[%emt 0:00:01]} 3. d4 {[%emt 0:00:00]} cxd4 {[%emt 0:00:00]} 4. Nxd4 {[%emt 0:00:00]} Nf6 {[%emt 0:00:00]} 5. Nc3 {[%emt 0:00:00]} d6 {[%emt 0:00:00]} 6. g3 {[%emt 0:00:00]} Be7 {[%emt 0:00:02]} 7. Bg2 {[%emt 0:00:01]} Nbd7 {[%emt 0:00:00]} 8. O-O {[%emt 0:00:01]} a6 {[%emt 0:00:02]} 9. f4 {[%emt 0:00:12]} h5 {[%emt 0:00:08]} 10. h3 {[%emt 0:00:04]} Qc7 {[%emt 0:00:08]} 11. Be3 {[%emt 0:00:03]} Rb8 {[%emt 0:00:11]} 12. Qe2 {[%emt 0:00:47]} b5 {[%emt 0:00:02]} 13. a3 {[%emt 0:00:01]} Bb7 {[%emt 0:00:01]} 14. Rad1 {[%emt 0:00:07]} Nc5 {[%emt 0:00:02]} 15. Bf2 {[%emt 0:00:10]} Rd8 {[%emt 0:00:12]} 16. f5 {[%emt 0:00:42]} e5 {[%emt 0:00:02]} 17. Nb3 {[%emt 0:00:01]} Kf8 {[%emt 0:00:57]} 18. Rd2 {[%emt 0:00:20]} Kg8 {[%emt 0:00:06]} 19. Rfd1 {[%emt 0:00:14]} Ncd7 {[%emt 0:00:20]} 20. Be3 {[%emt 0:00:19]} Nb6 {[%emt 0:00:01]} 21. Rd3 {[%emt 0:00:21]} Nc4 {[%emt 0:00:09]} 22. Bc1 {[%emt 0:00:01]} Qb6+ {[%emt 0:00:10]} 23. Be3 {[%emt 0:00:08]} Qc7 {[%emt 0:00:03]} 24. Bc1 {[%emt 0:00:01]} Rd7 {[%emt 0:00:01]} 25. g4 {[%emt 0:00:05]} hxg4 {[%emt 0:00:01]} 26. hxg4 {[%emt 0:00:00]} Qb6+ {[%emt 0:00:04]} 27. Be3 {[%emt 0:00:01]} Nxe3 {[%emt 0:00:01]} 28. Rxe3 {[%emt 0:00:00]} Nxg4 {[%emt 0:00:02]} 29. Rdd3 {[%emt 0:00:06]} Nxe3 {[%emt 0:00:04]} 30. Rxe3 {[%emt 0:00:00]} Bg5 {[%emt 0:00:01] Halityavuzibik00 terk eder (Lag: Av=0.56s, max=1.2s)} 0-1

[Event "Is Bankasi Online Satranc Turn.19-20 YAS"]
[Site "T#646377Mustafa Kemal"]
[Date "2020.05.27"]
[Round "4"]
[White "Egekargin94"]
[Black "Farukyazici26"]
[Result "1/2-1/2"]
[WhiteElo "1530"]
[BlackElo "1646"]
[Annotator "NA RC"]
[PlyCount "88"]
[EventDate "2020.05.27"]
[EventType "swiss (blitz)"]
[TimeControl "180+2"]

1. e4 {[%emt 0:00:04]} e5 {[%emt 0:00:01]} 2. Nf3 {[%emt 0:00:01]} Nc6 {[%emt 0:00:13]} 3. Bc4 {[%emt 0:00:02]} Bc5 {[%emt 0:00:01]} 4. c3 {[%emt 0:00:01]} Nf6 {[%emt 0:00:08]} 5. d4 {[%emt 0:00:02]} exd4 {[%emt 0:00:01]} 6. cxd4 {[%emt 0:00:00]} Bb4+ {[%emt 0:00:00]} 7. Bd2 {[%emt 0:00:01]} Bxd2+ {[%emt 0:00:05]} 8. Nbxd2 {[%emt 0:00:00]} d5 {[%emt 0:00:03]} 9. exd5 {[%emt 0:00:01]} Nxd5 {[%emt 0:00:02]} 10. O-O {[%emt 0:00:01]} O-O {[%emt 0:00:02]} 11. a3 {[%emt 0:00:02]} Bg4 {[%emt 0:00:04]} 12. h3 {[%emt 0:00:03]} Bh5 {[%emt 0:00:01]} 13. Qb3 {[%emt 0:00:02]} Nb6 {[%emt 0:00:09]} 14. Be2 {[%emt 0:00:04]} Bxf3 {[%emt 0:00:07]} 15. Nxf3 {[%emt 0:00:08]} Nxd4 {[%emt 0:00:05]} 16. Nxd4 {[%emt 0:00:06]} Qxd4 {[%emt 0:00:00]} 17. Rad1 {[%emt 0:00:01]} Qf6 {[%emt 0:00:06]} 18. Rfe1 {[%emt 0:00:03]} Rad8 {[%emt 0:00:03]} 19. Bg4 {[%emt 0:00:06]} Rd6 {[%emt 0:00:09]} 20. Qb5 {[%emt 0:00:09]} c6 {[%emt 0:00:14]} 21. Qc5 {[%emt 0:00:08]} Rxd1 {[%emt 0:00:07]} 22. Rxd1 {[%emt 0:00:06]} Qxb2 {[%emt 0:00:01]} 23. Rd3 {[%emt 0:00:25]} Qb5 {[%emt 0:00:27]} 24. Qe3 {[%emt 0:00:10]} Nd5 {[%emt 0:00:07]} 25. Qg3 {[%emt 0:00:04]} Nf6 {[%emt 0:00:09]} 26. Rf3 {[%emt 0:00:06]} Qb1+ {[%emt 0:00:12]} 27. Kh2 {[%emt 0:00:02]} Nxg4+ {[%emt 0:00:03]} 28. Qxg4 {[%emt 0:00:04]} Qg6 {[%emt 0:00:09]} 29. Qb4 {[%emt 0:00:03]} b5 {[%emt 0:00:14]} 30. Rg3 {[%emt 0:00:02]} Qf6 {[%emt 0:00:06]} 31. Qg4 {[%emt 0:00:12]} g6 {[%emt 0:00:04]} 32. Rf3 {[%emt 0:00:02]} Qd6+ {[%emt 0:00:04]} 33. g3 {[%emt 0:00:01]} a5 {[%emt 0:00:04]} 34. h4 {[%emt 0:00:01]} h5 {[%emt 0:00:02]} 35. Qg5 {[%emt 0:00:04]} Kg7 {[%emt 0:00:17]} 36. Rc3 {[%emt 0:00:20]} b4 {[%emt 0:00:09]} 37. axb4 {[%emt 0:00:02]} axb4 {[%emt 0:00:00]} 38. Rb3 {[%emt 0:00:02]} c5 {[%emt 0:00:01]} 39. Qc1 {[%emt 0:00:08]} Qd4 {[%emt 0:00:02]} 40. Rf3 {[%emt 0:00:03]} c4 {[%emt 0:00:06]} 41. Rf4 {[%emt 0:00:01]} Qc3 {[%emt 0:00:09]} 42. Qxc3+ {[%emt 0:00:07]} bxc3 {[%emt 0:00:00]} 43. Rxc4 {[%emt 0:00:01]} Re8 {[%emt 0:00:03]} 44. Rxc3 {[%emt 0:00:02] Farukyazici26 beraberlik teklif ediyor} Re1 {[%emt 0:00:03] (Lag: Av=0.56s, max=0.8s)} 1/2-1/2

[Event "Is Bankasi Online Satranc Turn.19-20 YAS"]
[Site "T#646377Mustafa Kemal"]
[Date "2020.05.27"]
[Round "5"]
[White "ahmetosmanonar60"]
[Black "Halityavuzibik00"]
[Result "0-1"]
[WhiteElo "1613"]
[BlackElo "1604"]
[Annotator "NA RC"]
[PlyCount "48"]
[EventDate "2020.05.27"]
[EventType "swiss (blitz)"]
[TimeControl "180+2"]

1. c4 {[%emt 0:00:04]} e5 {[%emt 0:00:02]} 2. Nc3 {[%emt 0:00:01]} Nf6 {[%emt 0:00:01]} 3. g3 {[%emt 0:00:03]} d5 {[%emt 0:00:01]} 4. cxd5 {[%emt 0:00:03]} Nxd5 {[%emt 0:00:00]} 5. Bg2 {[%emt 0:00:02]} Nb6 {[%emt 0:00:02]} 6. e3 {[%emt 0:00:06]} Nc6 {[%emt 0:00:03]} 7. Nge2 {[%emt 0:00:04]} Be7 {[%emt 0:00:06]} 8. O-O {[%emt 0:00:06]} O-O {[%emt 0:00:03]} 9. d4 {[%emt 0:00:26]} exd4 {[%emt 0:00:06]} 10. Nxd4 {[%emt 0:00:06]} Nxd4 {[%emt 0:00:01]} 11. Qxd4 {[%emt 0:00:09]} Qxd4 {[%emt 0:00:01]} 12. exd4 {[%emt 0:00:01]} c6 {[%emt 0:00:02]} 13. Bf4 {[%emt 0:00:09]} Be6 {[%emt 0:00:05]} 14. Rfe1 {[%emt 0:00:09]} Rad8 {[%emt 0:00:10]} 15. b3 {[%emt 0:00:18]} Rxd4 {[%emt 0:00:19]} 16. Be3 {[%emt 0:00:37]} Rd7 {[%emt 0:00:09]} 17. Ne4 {[%emt 0:00:08]} Bd5 {[%emt 0:00:12]} 18. Bh3 {[%emt 0:00:11]} Rdd8 {[%emt 0:00:51]} 19. Bf4 {[%emt 0:00:03]} f5 {[%emt 0:00:28]} 20. Nd2 {[%emt 0:00:26]} Bb4 {[%emt 0:00:23]} 21. Re5 {[%emt 0:00:19]} Bc3 {[%emt 0:00:07]} 22. Rxf5 {[%emt 0:00:09]} Rxf5 {[%emt 0:00:02]} 23. Bxf5 {[%emt 0:00:02]} Bxa1 {[%emt 0:00:01]} 24. Bc7 {[%emt 0:00:04]} Rf8 {[%emt 0:00:05] Zaman (Lag: Av=1.23s, max=7.6s)} 0-1